[Event "*** MasterClass Titled Tuesday Blitz"]
[Site "Chess.com"]
[Date "2017.12.12"]
[Round "6"]
[White "Noukii"]
[Black "Fighterman91"]
[Result "1-0"]
[WhiteElo "2612"]
[BlackElo "2492"]
[TimeControl "180+2"]
[EndTime "14:24:34 PST"]
[Termination "Noukii won by checkmate"]

1. d4 {[%clk 0:03:00.3]} 1... Nf6 {[%clk 0:03:00.6]} 2. c4 {[%clk 0:03:00.8]}
2... g6 {[%clk 0:02:54.6]} 3. Nc3 {[%clk 0:03:01.8]} 3... d5 {[%clk 0:02:56.1]}
4. Bg5 {[%clk 0:03:03.4]} 4... Bg7 {[%clk 0:02:56.6]} 5. Nf3 {[%clk 0:03:04]}
5... Ne4 {[%clk 0:02:56.4]} 6. Bh4 {[%clk 0:03:05.1]} 6... Nxc3 {[%clk
0:02:56.7]} 7. bxc3 {[%clk 0:03:07]} 7... dxc4 {[%clk 0:02:55.9]} 8. e3 {[%clk
0:03:06.4]} 8... Be6 {[%clk 0:02:57.5]} 9. Be2 {[%clk 0:03:06.6]} 9... O-O
{[%clk 0:02:55.5]} 10. O-O {[%clk 0:03:08]} 10... c5 {[%clk 0:02:55.3]} 11. Rb1
{[%clk 0:03:02.8]} 11... cxd4 {[%clk 0:02:48.9]} 12. Nxd4 {[%clk 0:03:00.1]}
12... Bd5 {[%clk 0:02:48.1]} 13. Bf3 {[%clk 0:02:44.2]} 13... Nc6 {[%clk
0:02:30.5]} 14. Re1 {[%clk 0:02:24.2]} 14... Ne5 {[%clk 0:02:08.7]} 15. Bxd5
{[%clk 0:02:16.6]} 15... Qxd5 {[%clk 0:02:10.6]} 16. Bxe7 {[%clk 0:02:17.7]}
16... Rfe8 {[%clk 0:02:11.7]} 17. Bh4 {[%clk 0:02:06.7]} 17... Nd3 {[%clk
0:02:11.3]} 18. Rf1 {[%clk 0:02:01]} 18... b6 {[%clk 0:01:54]} 19. Qa4 {[%clk
0:01:58.2]} 19... f5 {[%clk 0:01:25.4]} 20. Rfd1 {[%clk 0:01:17.6]} 20... f4
{[%clk 0:01:09.4]} 21. Nc2 {[%clk 0:00:18.7]} 21... Rac8 {[%clk 0:00:38.9]} 22.
Nb4 {[%clk 0:00:19]} 22... Qe4 {[%clk 0:00:22.5]} 23. Nxd3 {[%clk 0:00:18.5]}
23... cxd3 {[%clk 0:00:24.4]} 24. Qxe4 {[%clk 0:00:17.4]} 24... Rxe4 {[%clk
0:00:26.3]} 25. Rxd3 {[%clk 0:00:09.7]} 25... fxe3 {[%clk 0:00:27.3]} 26. Bg3
{[%clk 0:00:04.9]} 26... e2 {[%clk 0:00:26.9]} 27. Re3 {[%clk 0:00:06.3]} 27...
Rxe3 {[%clk 0:00:21.6]} 28. fxe3 {[%clk 0:00:07.2]} 28... Rxc3 {[%clk
0:00:22.7]} 29. Kf2 {[%clk 0:00:03]} 29... Rc2 {[%clk 0:00:24.2]} 30. Kf3 {[%clk
0:00:04.9]} 30... Bc3 {[%clk 0:00:24.3]} 31. a4 {[%clk 0:00:06.8]} 31... Ra2
{[%clk 0:00:24.1]} 32. Rc1 {[%clk 0:00:07.7]} 32... Bd2 {[%clk 0:00:12]} 33.
Rc8+ {[%clk 0:00:07.6]} 33... Kf7 {[%clk 0:00:13.5]} 34. Kxe2 {[%clk 0:00:09.5]}
34... a5 {[%clk 0:00:12.6]} 35. Kd3 {[%clk 0:00:09.6]} 35... Bb4 {[%clk
0:00:13.7]} 36. Rc7+ {[%clk 0:00:11.1]} 36... Ke6 {[%clk 0:00:15]} 37. Rxh7
{[%clk 0:00:12.1]} 37... Rxa4 {[%clk 0:00:16.5]} 38. Rh6 {[%clk 0:00:12.5]}
38... Kf7 {[%clk 0:00:16.2]} 39. Rh7+ {[%clk 0:00:13.7]} 39... Ke6 {[%clk
0:00:17.3]} 40. Rh6 {[%clk 0:00:14.6]} 40... b5 {[%clk 0:00:18.8]} 41. Rxg6+
{[%clk 0:00:15.7]} 41... Kd5 {[%clk 0:00:20.4]} 42. e4+ {[%clk 0:00:16.5]} 42...
Kc5 {[%clk 0:00:19.4]} 43. Bf2# {[%clk 0:00:18]} 1-0

[Event "*** MasterClass Titled Tuesday Blitz"]
[Site "Chess.com"]
[Date "2017.12.12"]
[Round "6"]
[White "filali-oujda"]
[Black "pedromartinez91"]
[Result "0-1"]
[WhiteElo "2358"]
[BlackElo "2217"]
[TimeControl "180+2"]
[EndTime "14:25:14 PST"]
[Termination "pedromartinez91 won by resignation"]

1. e4 {[%clk 0:03:01.8]} 1... c5 {[%clk 0:03:00.5]} 2. Nf3 {[%clk 0:03:01.4]}
2... Nc6 {[%clk 0:03:01.2]} 3. c4 {[%clk 0:03:01.7]} 3... g6 {[%clk 0:03:01.9]}
4. Nc3 {[%clk 0:03:03.2]} 4... Bg7 {[%clk 0:03:02.9]} 5. d3 {[%clk 0:03:04.8]}
5... d6 {[%clk 0:03:04.1]} 6. h3 {[%clk 0:03:04.1]} 6... Nf6 {[%clk 0:03:04.8]}
7. Be3 {[%clk 0:03:03.6]} 7... a6 {[%clk 0:03:04.2]} 8. Qd2 {[%clk 0:03:04.6]}
8... Rb8 {[%clk 0:03:04.7]} 9. Rc1 {[%clk 0:02:56.6]} 9... b5 {[%clk 0:03:04.8]}
10. b3 {[%clk 0:02:56.6]} 10... b4 {[%clk 0:03:05.3]} 11. Nd5 {[%clk 0:02:51.6]}
11... e6 {[%clk 0:02:59.8]} 12. Nxf6+ {[%clk 0:02:42.8]} 12... Bxf6 {[%clk
0:02:53.7]} 13. d4 {[%clk 0:02:34.3]} 13... cxd4 {[%clk 0:02:43.6]} 14. Nxd4
{[%clk 0:02:30.4]} 14... Bb7 {[%clk 0:02:34.6]} 15. Be2 {[%clk 0:02:27.4]} 15...
Nxd4 {[%clk 0:02:15.8]} 16. Bxd4 {[%clk 0:02:26.3]} 16... e5 {[%clk 0:02:16.8]}
17. Ba7 {[%clk 0:02:13.1]} 17... Ra8 {[%clk 0:02:16.8]} 18. Be3 {[%clk
0:02:14.1]} 18... Bxe4 {[%clk 0:02:11.5]} 19. f3 {[%clk 0:01:59.4]} 19... Bh4+
{[%clk 0:02:11.6]} 20. Kf1 {[%clk 0:01:59.9]} 20... Bc6 {[%clk 0:02:07.2]} 21.
Qxb4 {[%clk 0:01:58.2]} 21... O-O {[%clk 0:02:04.6]} 22. Rd1 {[%clk 0:01:58.9]}
22... Be7 {[%clk 0:01:57.7]} 23. h4 {[%clk 0:01:50.4]} 23... a5 {[%clk
0:01:51.1]} 24. Qc3 {[%clk 0:01:47.4]} 24... Qc8 {[%clk 0:01:35.8]} 25. c5
{[%clk 0:01:39.4]} 25... Rd8 {[%clk 0:01:15.5]} 26. h5 {[%clk 0:01:35.7]} 26...
Bb7 {[%clk 0:00:46.7]} 27. hxg6 {[%clk 0:01:32]} 27... hxg6 {[%clk 0:00:47.2]}
28. Rc1 {[%clk 0:00:49.5]} 28... Ba6 {[%clk 0:00:36.2]} 29. c6 {[%clk 0:00:35]}
29... Bxe2+ {[%clk 0:00:36.1]} 30. Kxe2 {[%clk 0:00:36.4]} 30... Qa6+ {[%clk
0:00:35.4]} 31. Kf2 {[%clk 0:00:37.2]} 31... Rac8 {[%clk 0:00:33.2]} 32. Rh3
{[%clk 0:00:21.1]} 32... Bf6 {[%clk 0:00:33.2]} 33. f4 {[%clk 0:00:20.6]} 33...
Re8 {[%clk 0:00:24.2]} 34. a4 {[%clk 0:00:19.2]} 34... d5 {[%clk 0:00:25.1]} 35.
fxe5 {[%clk 0:00:19.1]} 35... Rxe5 {[%clk 0:00:26]} 36. Qd2 {[%clk 0:00:18.8]}
36... Rxc6 {[%clk 0:00:20.6]} 37. Rxc6 {[%clk 0:00:17.4]} 37... Qxc6 {[%clk
0:00:22.5]} 38. Kg1 {[%clk 0:00:16.9]} 38... Qe6 {[%clk 0:00:16.3]} 39. Bf2
{[%clk 0:00:16.7]} 39... Re2 {[%clk 0:00:15.5]} 40. Qxa5 {[%clk 0:00:18.2]}
40... d4 {[%clk 0:00:12.5]} 41. Qa8+ {[%clk 0:00:18.2]} 41... Qe8 {[%clk
0:00:12.4]} 42. Qxe8+ {[%clk 0:00:19.4]} 42... Rxe8 {[%clk 0:00:14.3]} 43. Rd3
{[%clk 0:00:21.1]} 43... Rd8 {[%clk 0:00:14.5]} 44. Kf1 {[%clk 0:00:22.5]} 44...
Kf8 {[%clk 0:00:15.6]} 45. Ke2 {[%clk 0:00:23.9]} 45... Ke7 {[%clk 0:00:17.5]}
46. Rf3 {[%clk 0:00:24.9]} 46... Ke6 {[%clk 0:00:17.4]} 47. Kd3 {[%clk
0:00:25.8]} 47... Rb8 {[%clk 0:00:18.2]} 48. Kc4 {[%clk 0:00:26.1]} 48... Be5
{[%clk 0:00:19.1]} 49. Rc3 {[%clk 0:00:27.4]} 49... dxc3 {[%clk 0:00:19.6]} 50.
b4 {[%clk 0:00:29]} 50... c2 {[%clk 0:00:20.3]} 0-1

[Event "*** MasterClass Titled Tuesday Blitz"]
[Site "Chess.com"]
[Date "2017.12.12"]
[Round "6"]
[White "Vahe_Dan"]
[Black "Salem-AR"]
[Result "1-0"]
[WhiteElo "2579"]
[BlackElo "2814"]
[TimeControl "180+2"]
[EndTime "14:25:17 PST"]
[Termination "Vahe_Dan won on time"]

1. e4 {[%clk 0:03:01.9]} 1... c5 {[%clk 0:03:00.7]} 2. Nc3 {[%clk 0:03:02]} 2...
d6 {[%clk 0:02:58.6]} 3. g3 {[%clk 0:03:02]} 3... Nc6 {[%clk 0:02:58.5]} 4. Bg2
{[%clk 0:03:03.3]} 4... g6 {[%clk 0:03:00.1]} 5. Nge2 {[%clk 0:03:03.7]} 5...
Bg7 {[%clk 0:03:01.3]} 6. d3 {[%clk 0:03:03.4]} 6... e6 {[%clk 0:03:02]} 7. O-O
{[%clk 0:03:01.6]} 7... Nge7 {[%clk 0:03:03.1]} 8. Be3 {[%clk 0:02:59.1]} 8...
Nd4 {[%clk 0:03:03.7]} 9. Rb1 {[%clk 0:02:58]} 9... O-O {[%clk 0:03:01.7]} 10.
b4 {[%clk 0:02:54.7]} 10... Rb8 {[%clk 0:03:00.6]} 11. bxc5 {[%clk 0:02:53]}
11... dxc5 {[%clk 0:03:01.9]} 12. f4 {[%clk 0:02:54.9]} 12... b6 {[%clk
0:03:02.3]} 13. e5 {[%clk 0:02:52.8]} 13... Nef5 {[%clk 0:02:50.6]} 14. Bf2
{[%clk 0:02:52.2]} 14... Bb7 {[%clk 0:02:50.6]} 15. Ne4 {[%clk 0:02:49.9]} 15...
Qe7 {[%clk 0:02:22.5]} 16. c3 {[%clk 0:02:49.6]} 16... Nxe2+ {[%clk 0:02:21.7]}
17. Qxe2 {[%clk 0:02:50.9]} 17... Rfd8 {[%clk 0:01:37.3]} 18. Rfd1 {[%clk
0:02:48.7]} 18... Qc7 {[%clk 0:01:30.2]} 19. Rb2 {[%clk 0:02:46.8]} 19... Bxe4
{[%clk 0:01:19.2]} 20. dxe4 {[%clk 0:02:43.5]} 20... Rxd1+ {[%clk 0:01:19.1]}
21. Qxd1 {[%clk 0:02:44]} 21... Rd8 {[%clk 0:01:20.4]} 22. Rd2 {[%clk
0:02:42.7]} 22... Rxd2 {[%clk 0:01:21.8]} 23. Qxd2 {[%clk 0:02:44.6]} 23... Ne7
{[%clk 0:01:22.7]} 24. Bf1 {[%clk 0:02:40]} 24... Bf8 {[%clk 0:01:08]} 25. a4
{[%clk 0:02:38.1]} 25... Qc6 {[%clk 0:01:08]} 26. Qc2 {[%clk 0:02:37.2]} 26...
c4 {[%clk 0:01:09.3]} 27. Qe2 {[%clk 0:02:35.7]} 27... Qxa4 {[%clk 0:01:07.8]}
28. Qxc4 {[%clk 0:02:12.8]} 28... Qxc4 {[%clk 0:01:09.7]} 29. Bxc4 {[%clk
0:02:12.7]} 29... g5 {[%clk 0:01:11.6]} 30. Kg2 {[%clk 0:02:01]} 30... gxf4
{[%clk 0:01:11.7]} 31. gxf4 {[%clk 0:02:01.7]} 31... Bh6 {[%clk 0:01:11]} 32.
Kf3 {[%clk 0:02:01.3]} 32... Kf8 {[%clk 0:01:12.2]} 33. Bb5 {[%clk 0:01:56.7]}
33... Ng6 {[%clk 0:01:03.3]} 34. Bg3 {[%clk 0:01:56.6]} 34... Bg7 {[%clk
0:01:03.8]} 35. Kg4 {[%clk 0:01:54.3]} 35... Ke7 {[%clk 0:01:03.6]} 36. h4
{[%clk 0:01:53.9]} 36... Kd8 {[%clk 0:00:51.5]} 37. h5 {[%clk 0:01:52.8]} 37...
Nf8 {[%clk 0:00:52.4]} 38. Bh4+ {[%clk 0:01:41.8]} 38... Kc7 {[%clk 0:00:46.1]}
39. Be8 {[%clk 0:01:42.3]} 39... a5 {[%clk 0:00:44.6]} 40. Bxf7 {[%clk
0:01:33.8]} 40... Kd7 {[%clk 0:00:44.9]} 41. f5 {[%clk 0:01:28.1]} 41... a4
{[%clk 0:00:45.5]} 42. fxe6+ {[%clk 0:01:24.8]} 42... Nxe6 {[%clk 0:00:40.4]}
43. Kf5 {[%clk 0:01:25.6]} 43... Nc7 {[%clk 0:00:23.9]} 44. e6+ {[%clk
0:01:21.6]} 44... Kc6 {[%clk 0:00:24.8]} 45. e7 {[%clk 0:01:18.2]} 45... Kd7
{[%clk 0:00:24.3]} 46. e5 {[%clk 0:01:17]} 46... a3 {[%clk 0:00:25.5]} 47. Bf6
{[%clk 0:01:07]} 47... Ne8 {[%clk 0:00:08.4]} 48. Be6+ {[%clk 0:00:44.7]} 48...
Kc7 {[%clk 0:00:09]} 49. Ba2 {[%clk 0:00:45]} 49... Kd7 {[%clk 0:00:05.5]} 50.
Bxg7 {[%clk 0:00:38.8]} 50... Nxg7+ {[%clk 0:00:06.2]} 51. Kf6 {[%clk 0:00:40]}
51... Ne8+ {[%clk 0:00:06.7]} 52. Kf7 {[%clk 0:00:41]} 52... Nc7 {[%clk
0:00:03]} 53. e6+ {[%clk 0:00:40.5]} 53... Kd6 {[%clk 0:00:03.9]} 54. e8=Q
{[%clk 0:00:38.6]} 54... Nxe8 {[%clk 0:00:04.7]} 55. Kxe8 {[%clk 0:00:40.5]} 1-0

[Event "*** MasterClass Titled Tuesday Blitz"]
[Site "Chess.com"]
[Date "2017.12.12"]
[Round "6"]
[White "marianokar"]
[Black "Quiet_Desperation"]
[Result "0-1"]
[WhiteElo "2293"]
[BlackElo "2374"]
[TimeControl "180+2"]
[EndTime "14:25:46 PST"]
[Termination "Quiet_Desperation won by resignation"]

1. d4 {[%clk 0:02:51.9]} 1... Nf6 {[%clk 0:02:59.7]} 2. Nf3 {[%clk 0:02:52.4]}
2... e6 {[%clk 0:02:51.9]} 3. c4 {[%clk 0:02:54.3]} 3... Bb4+ {[%clk 0:02:50.8]}
4. Nbd2 {[%clk 0:02:53.7]} 4... b6 {[%clk 0:02:50]} 5. a3 {[%clk 0:02:54.7]}
5... Bxd2+ {[%clk 0:02:48.3]} 6. Qxd2 {[%clk 0:02:56.3]} 6... Bb7 {[%clk
0:02:45.4]} 7. e3 {[%clk 0:02:56.4]} 7... O-O {[%clk 0:02:45.3]} 8. Be2 {[%clk
0:02:57.5]} 8... d6 {[%clk 0:02:42.9]} 9. b4 {[%clk 0:02:57]} 9... Nbd7 {[%clk
0:02:44.2]} 10. Bb2 {[%clk 0:02:57.5]} 10... Ne4 {[%clk 0:02:43.1]} 11. Qc2
{[%clk 0:02:58.3]} 11... f5 {[%clk 0:02:39.9]} 12. O-O {[%clk 0:02:57.7]} 12...
Qe7 {[%clk 0:02:39.9]} 13. d5 {[%clk 0:02:50.9]} 13... e5 {[%clk 0:02:34.7]} 14.
Bd3 {[%clk 0:02:37.8]} 14... Ndf6 {[%clk 0:02:29.3]} 15. Ne1 {[%clk 0:02:08]}
15... g6 {[%clk 0:02:21.2]} 16. f3 {[%clk 0:02:01.7]} 16... Ng5 {[%clk
0:02:21.1]} 17. f4 {[%clk 0:01:45.4]} 17... Nge4 {[%clk 0:02:13]} 18. Bxe4
{[%clk 0:01:34.5]} 18... Nxe4 {[%clk 0:02:12.6]} 19. fxe5 {[%clk 0:01:34.7]}
19... dxe5 {[%clk 0:02:13.5]} 20. Nf3 {[%clk 0:01:35.5]} 20... Nf6 {[%clk
0:02:00]} 21. Nxe5 {[%clk 0:01:33.8]} 21... Rae8 {[%clk 0:01:59.9]} 22. Bd4
{[%clk 0:01:31.6]} 22... Nd7 {[%clk 0:01:51.9]} 23. Nxd7 {[%clk 0:01:26]} 23...
Qxd7 {[%clk 0:01:51.2]} 24. Rf4 {[%clk 0:01:26.8]} 24... c6 {[%clk 0:01:46.6]}
25. dxc6 {[%clk 0:01:15.4]} 25... Qxc6 {[%clk 0:01:45.6]} 26. Rc1 {[%clk
0:01:11.3]} 26... Re7 {[%clk 0:01:29.3]} 27. c5 {[%clk 0:01:10.5]} 27... b5
{[%clk 0:01:27.2]} 28. Re1 {[%clk 0:01:02]} 28... Rfe8 {[%clk 0:01:26]} 29. Qd2
{[%clk 0:00:59.4]} 29... Qd5 {[%clk 0:01:20.8]} 30. Rf2 {[%clk 0:00:47.8]} 30...
Bc6 {[%clk 0:01:10.1]} 31. h3 {[%clk 0:00:35.4]} 31... Qe4 {[%clk 0:01:00.2]}
32. Bb2 {[%clk 0:00:33.4]} 32... Kf7 {[%clk 0:00:22.1]} 33. Qc3 {[%clk
0:00:32.8]} 33... Re5 {[%clk 0:00:23.4]} 34. Qd4 {[%clk 0:00:19.7]} 34... Qxd4
{[%clk 0:00:23.1]} 35. Bxd4 {[%clk 0:00:21.2]} 35... Re4 {[%clk 0:00:24.6]} 36.
Ref1 {[%clk 0:00:21.4]} 36... Ke6 {[%clk 0:00:22]} 37. Kh2 {[%clk 0:00:23.3]}
37... Kd5 {[%clk 0:00:22.7]} 38. Rc2 {[%clk 0:00:22.1]} 38... Ke6 {[%clk
0:00:19.7]} 39. Kg3 {[%clk 0:00:21.6]} 39... h6 {[%clk 0:00:19.3]} 40. Rf4
{[%clk 0:00:20.4]} 40... Kd5 {[%clk 0:00:15.4]} 41. Rxe4 {[%clk 0:00:20]} 41...
Rxe4 {[%clk 0:00:17.3]} 42. Kf2 {[%clk 0:00:20.3]} 42... g5 {[%clk 0:00:18.5]}
43. Bg7 {[%clk 0:00:20.7]} 43... h5 {[%clk 0:00:18.6]} 44. Rd2+ {[%clk
0:00:21.6]} 44... Kc4 {[%clk 0:00:18]} 45. Rd6 {[%clk 0:00:22.7]} 45... Bd5
{[%clk 0:00:19.2]} 46. c6 {[%clk 0:00:23.6]} 46... Re8 {[%clk 0:00:20]} 47. c7
{[%clk 0:00:24.5]} 47... Rc8 {[%clk 0:00:21.2]} 48. Rd7 {[%clk 0:00:25.2]} 48...
Bb7 {[%clk 0:00:19.8]} 49. Be5 {[%clk 0:00:25]} 49... g4 {[%clk 0:00:20.3]} 50.
h4 {[%clk 0:00:25.5]} 50... Kb3 {[%clk 0:00:21.2]} 51. Rd3+ {[%clk 0:00:26]}
51... Kc4 {[%clk 0:00:21.7]} 52. Rc3+ {[%clk 0:00:27.9]} 52... Kd5 {[%clk
0:00:22]} 53. Bf4 {[%clk 0:00:29.4]} 53... Ke4 {[%clk 0:00:22.1]} 54. g3 {[%clk
0:00:30.2]} 54... Kd5 {[%clk 0:00:22.8]} 55. Ke2 {[%clk 0:00:31.2]} 55... a6
{[%clk 0:00:23.1]} 56. Kd3 {[%clk 0:00:32.3]} 56... Ke6 {[%clk 0:00:24.3]} 57.
Kd4 {[%clk 0:00:33]} 57... Be4 {[%clk 0:00:24.2]} 58. Kc5 {[%clk 0:00:33.3]}
58... Kd7 {[%clk 0:00:20.7]} 59. Rd3+ {[%clk 0:00:33.8]} 59... Bxd3 {[%clk
0:00:21.1]} 60. Kb6 {[%clk 0:00:32.3]} 60... Bc4 {[%clk 0:00:18]} 61. Kxa6
{[%clk 0:00:32.9]} 61... Kc6 {[%clk 0:00:19.4]} 62. Ka7 {[%clk 0:00:32.9]} 62...
Rxc7+ {[%clk 0:00:19]} 63. Bxc7 {[%clk 0:00:32.8]} 63... Kxc7 {[%clk 0:00:20.9]}
64. Ka6 {[%clk 0:00:33.7]} 64... Kc6 {[%clk 0:00:21.9]} 65. Ka5 {[%clk
0:00:34.3]} 65... Kd5 {[%clk 0:00:21.8]} 66. a4 {[%clk 0:00:36.2]} 66... bxa4
{[%clk 0:00:23.2]} 67. Kxa4 {[%clk 0:00:37.8]} 67... Ke4 {[%clk 0:00:24.5]} 68.
b5 {[%clk 0:00:39.7]} 68... Bxb5+ {[%clk 0:00:24]} 0-1

[Event "*** MasterClass Titled Tuesday Blitz"]
[Site "Chess.com"]
[Date "2017.12.12"]
[Round "6"]
[White "ST-Sandavagur"]
[Black "Vamostodorecto"]
[Result "1-0"]
[WhiteElo "2490"]
[BlackElo "2331"]
[TimeControl "180+2"]
[EndTime "14:25:49 PST"]
[Termination "ST-Sandavagur won by resignation"]

1. e4 {[%clk 0:03:01.8]} 1... e5 {[%clk 0:02:44.6]} 2. Nf3 {[%clk 0:03:00.3]}
2... Nc6 {[%clk 0:02:45.3]} 3. Bc4 {[%clk 0:03:00.8]} 3... Nf6 {[%clk
0:02:45.6]} 4. d3 {[%clk 0:03:02.2]} 4... Be7 {[%clk 0:02:46.4]} 5. c3 {[%clk
0:03:03.8]} 5... O-O {[%clk 0:02:47.6]} 6. Bb3 {[%clk 0:03:05.6]} 6... d6 {[%clk
0:02:49]} 7. Nbd2 {[%clk 0:03:07.3]} 7... Kh8 {[%clk 0:02:50.2]} 8. h3 {[%clk
0:03:09]} 8... a6 {[%clk 0:02:49.8]} 9. Nf1 {[%clk 0:03:10.2]} 9... d5 {[%clk
0:02:44.2]} 10. Qe2 {[%clk 0:03:11.2]} 10... d4 {[%clk 0:02:44.4]} 11. g4 {[%clk
0:03:11.8]} 11... Be6 {[%clk 0:02:34.7]} 12. Bxe6 {[%clk 0:03:13.6]} 12... fxe6
{[%clk 0:02:36.6]} 13. Ng3 {[%clk 0:03:15.3]} 13... Bc5 {[%clk 0:02:31.4]} 14.
Bg5 {[%clk 0:03:04.1]} 14... Qd6 {[%clk 0:02:30.4]} 15. O-O {[%clk 0:02:56.5]}
15... Rf7 {[%clk 0:02:29.1]} 16. Nd2 {[%clk 0:02:53.1]} 16... Raf8 {[%clk
0:02:25.5]} 17. Nc4 {[%clk 0:02:52.5]} 17... Qd7 {[%clk 0:02:24.5]} 18. Nh1
{[%clk 0:02:02.7]} 18... h6 {[%clk 0:02:23]} 19. Bh4 {[%clk 0:01:50.2]} 19...
Nh7 {[%clk 0:02:18.6]} 20. Nd2 {[%clk 0:01:40.1]} 20... Be7 {[%clk 0:02:08.2]}
21. Bg3 {[%clk 0:01:27.1]} 21... Ng5 {[%clk 0:01:59.9]} 22. Kg2 {[%clk
0:01:26.4]} 22... Nf3 {[%clk 0:01:59.2]} 23. Nxf3 {[%clk 0:01:27.9]} 23... Rxf3
{[%clk 0:02:01.1]} 24. Rad1 {[%clk 0:01:28.4]} 24... Bc5 {[%clk 0:01:52.6]} 25.
Qxf3 {[%clk 0:01:29.8]} 25... Rxf3 {[%clk 0:01:52.3]} 26. Kxf3 {[%clk
0:01:31.7]} 26... Bd6 {[%clk 0:01:35.6]} 27. Kg2 {[%clk 0:01:25.6]} 27... Ne7
{[%clk 0:01:35]} 28. f4 {[%clk 0:01:21.5]} 28... exf4 {[%clk 0:01:35]} 29. Bxf4
{[%clk 0:01:23.4]} 29... Bxf4 {[%clk 0:01:31]} 30. Rxf4 {[%clk 0:01:25.3]} 30...
Ng6 {[%clk 0:01:32.4]} 31. Rf2 {[%clk 0:01:19.9]} 31... e5 {[%clk 0:01:33.5]}
32. Ng3 {[%clk 0:01:15.9]} 32... Nf4+ {[%clk 0:01:33.4]} 33. Kh2 {[%clk
0:01:17.4]} 33... Qa4 {[%clk 0:01:25.1]} 34. b3 {[%clk 0:01:13.5]} 34... Qc6
{[%clk 0:01:16.4]} 35. cxd4 {[%clk 0:01:12.6]} 35... Qc3 {[%clk 0:01:06.7]} 36.
dxe5 {[%clk 0:00:56.9]} 36... Nxd3 {[%clk 0:01:05.9]} 37. e6 {[%clk 0:00:18.4]}
37... Qc5 {[%clk 0:00:50.5]} 38. Rfd2 {[%clk 0:00:10.6]} 38... Nf4 {[%clk
0:00:45.5]} 39. e7 {[%clk 0:00:03.5]} 39... Qxe7 {[%clk 0:00:44.8]} 40. Re1
{[%clk 0:00:05.2]} 40... Qe5 {[%clk 0:00:42.5]} 41. Re3 {[%clk 0:00:05.3]} 41...
c6 {[%clk 0:00:42.1]} 42. Rf2 {[%clk 0:00:06.7]} 42... Nd5 {[%clk 0:00:40.3]}
43. Ree2 {[%clk 0:00:06.6]} 43... Nc3 {[%clk 0:00:38.8]} 44. Re3 {[%clk
0:00:07.4]} 44... Nd5 {[%clk 0:00:38.9]} 45. Re1 {[%clk 0:00:08.4]} 45... Nf4
{[%clk 0:00:37.5]} 46. Ref1 {[%clk 0:00:09.8]} 46... g5 {[%clk 0:00:32.5]} 47.
Rd1 {[%clk 0:00:10.8]} 47... Qe7 {[%clk 0:00:25.6]} 48. Rfd2 {[%clk 0:00:11.6]}
48... Ne6 {[%clk 0:00:22]} 49. e5 {[%clk 0:00:12.7]} 49... Qf7 {[%clk
0:00:20.2]} 50. Rf1 {[%clk 0:00:12.6]} 50... Qc7 {[%clk 0:00:19.3]} 51. Rd6
{[%clk 0:00:13.2]} 51... Nf4 {[%clk 0:00:11.9]} 52. Rfd1 {[%clk 0:00:13.3]}
52... Qe7 {[%clk 0:00:11.9]} 53. Rd8+ {[%clk 0:00:14.4]} 53... Kg7 {[%clk
0:00:10.9]} 54. R8d7 {[%clk 0:00:15.8]} 54... Kf7 {[%clk 0:00:11]} 55. Rxe7+
{[%clk 0:00:17.6]} 55... Kxe7 {[%clk 0:00:12.9]} 56. Rd6 {[%clk 0:00:18.7]}
56... h5 {[%clk 0:00:12.3]} 57. Nf5+ {[%clk 0:00:20.3]} 57... Kf7 {[%clk
0:00:12.5]} 58. Rf6+ {[%clk 0:00:21.6]} 1-0